bitfinex-derivatives/quotes_SOLF0:USTF0_20251018
["timestamp","ask_amount","ask_price","bid_price","bid_amount"]
[1760781141434,2.69,185.61,185.58,4.52966621]
[1760781141633,4.07115942,185.6,185.58,4.52966621]
[1760781141835,2.69,185.61,185.58,4.52966621]
[1760781142034,4.07115942,185.6,185.58,2.69]
[1760781142335,2.69,185.64,185.58,1.83966621]
[1760781142533,13.04116003,185.63,185.58,1.83966621]
[1760781142733,2.69,185.61,185.58,1.83966621]
[1760781142929,6.76010002,185.6,185.58,1.83966621]
[1760781143234,2.69,185.6,185.58,1.83966621]
[1760781144825,4.54333511,185.64,185.6,4.8468]
[1760781145027,2.69,185.7,185.63,2.69]
[1760781145341,4.06388722,185.69,185.67,1.83966621]
[1760781145532,2.69,185.7,185.67,4.52966621]
[1760781145735,2.69,185.7,185.69,1.83966621]
[1760781145935,2.69,185.7,185.67,1.83966621]
[1760781146135,2.69,185.73,185.67,1.83966621]
[1760781146330,8.47274315,185.72,185.67,1.83966621]
[1760781146529,2.69,185.74,185.67,1.83966621]
[1760781146841,8.47280974,185.73,185.67,1.83966621]
[1760781147036,8.47280974,185.72,185.67,1.83966621]
[1760781147238,2.69,185.75,185.67,1.83966621]
[1760781147438,7.5338,185.73,185.67,1.83966621]
[1760781148631,2.69,185.72,185.69,1.83966621]
[1760781148836,2.69,185.71,185.69,1.83966621]
[1760781149537,1.83966621,185.78,185.7,2.69]
[1760781149538,2.69,185.76,185.7,2.69]
[1760781149736,6.74492293,185.75,185.72,1.83966621]
[1760781150039,2.69,185.75,185.72,1.83966621]
[1760781150441,2.69,185.75,185.72,4.52966621]
[1760781151240,97.29311917,185.79,185.74,1.83966621]
[1760781151942,2.69,185.76,185.74,1.83966621]
[1760781154136,2.69,185.76,185.72,2.69]
[1760781154741,2.69,185.78,185.72,2.69]
[1760781157243,2.69,185.83,185.76,4.52966621]
[1760781158138,2.69,185.83,185.78,1.83966621]
[1760781158843,2.69,185.86,185.79,2.69]
[1760781160039,2.69,185.86,185.8,1.83966621]
[1760781160536,2.69,185.86,185.83,2.69]
[1760781160744,47.31,185.89,185.85,2.69]
[1760781160944,2.69,185.89,185.85,2.69]
[1760781161436,2.69,185.89,185.84,2.69]
[1760781161638,2.69,185.93,185.85,2.69]
[1760781162036,5.55330937,185.93,185.81,2.69]
[1760781162939,4.8389,185.92,185.82,4.8413]
[1760781163144,2.69,185.91,185.83,2.69]
[1760781165046,7.5291,185.91,185.83,2.69]
[1760781166543,2.69,185.91,185.83,5.55330937]
[1760781170648,2.69,185.91,185.85,2.69]
[1760781171344,18.56685382,185.94,185.85,2.69]
[1760781171540,2.66,185.94,185.85,2.69]
[1760781171744,4.8386,185.93,185.85,2.69]
[1760781172150,2.66,185.94,185.88,2.69]
[1760781174352,2.66,185.94,185.85,4.8405]
[1760781174744,7.20011695,185.95,185.85,4.8405]
[1760781174945,4.8386,185.93,185.85,4.8405]
[1760781175146,2.66,185.92,185.85,4.8405]
[1760781175348,2.66,185.92,185.86,7.5301]
[1760781179859,2.66,185.92,185.88,2.69]
[1760781180155,2.66,185.92,185.87,4.8398]
[1760781180354,2.66,185.92,185.89,2.69]
[1760781180559,4.8383,185.94,185.88,2.69]
[1760781180756,2.66,185.93,185.88,2.69]
[1760781181065,2.66,185.95,185.88,2.69]
[1760781181252,2.66,185.93,185.88,2.69]
[1760781181449,2.66,185.95,185.88,2.69]
[1760781181660,2.66,185.93,185.88,2.69]
[1760781181962,2.66,185.95,185.88,2.69]
[1760781182156,8.35301786,185.94,185.88,2.69]
[1760781182356,2.66,185.95,185.88,2.69]
[1760781182556,8.35629322,185.94,185.88,2.69]
[1760781182756,2.66,185.95,185.88,2.69]
[1760781182957,2.66,185.93,185.88,2.69]
[1760781183352,4.8383,185.94,185.88,2.69]
[1760781184058,8.35983698,185.93,185.85,4.8404]
[1760781184263,2.66,185.91,185.85,4.8404]
[1760781184762,7.4991,185.91,185.85,4.8404]
[1760781185553,11.90840104,185.9,185.84,2.69]
[1760781185753,7.5493,185.9,185.84,2.69]
[1760781186157,7.5493,185.9,185.84,7.5306]
[1760781187163,4.36669976,185.89,185.84,7.5306]
[1760781187361,7.5493,185.9,185.84,7.5306]
[1760781187558,7.07669976,185.89,185.85,2.66]
[1760781187758,2.71,185.89,185.85,2.66]
[1760781188164,2.71,185.89,185.84,4.8406]
[1760781188366,2.71,185.89,185.85,2.66]
[1760781188575,2.71,185.89,185.84,4.8406]
[1760781188780,2.71,185.89,185.85,2.66]
[1760781189378,4.37653141,185.88,185.85,2.66]
[1760781189578,2.71,185.92,185.85,2.66]
[1760781189779,4.37640656,185.91,185.85,2.66]
[1760781189971,2.71,185.92,185.85,2.66]
[1760781190172,4.37608165,185.91,185.85,2.66]
[1760781190380,4.37837083,185.9,185.85,2.66]
[1760781190678,2.71,185.92,185.85,2.66]
[1760781190878,7.08837083,185.91,185.87,2.66]
[1760781191076,4.37837083,185.9,185.86,4.8401]
[1760781191271,2.71,185.91,185.86,4.8401]
[1760781191480,4.38097852,185.9,185.87,2.66]
[1760781191677,2.71,185.91,185.86,4.8401]
[1760781191874,4.38097852,185.9,185.86,4.8401]
[1760781192179,2.71,185.91,185.86,4.8401]
[1760781192374,4.38326408,185.9,185.86,4.8401]
[1760781192576,2.71,185.91,185.87,2.66]
[1760781192879,4.38326408,185.9,185.87,2.66]
[1760781193075,2.71,185.91,185.87,2.66]
[1760781193281,4.41306717,185.9,185.87,2.66]
[1760781193482,2.71,185.91,185.87,2.66]
[1760781193680,4.41551874,185.9,185.87,2.66]
[1760781193879,2.71,185.91,185.86,4.8401]
[1760781194079,4.41551874,185.9,185.87,2.66]
[1760781194281,4.41551874,185.89,185.87,2.66]
[1760781194579,2.71,185.91,185.87,2.66]
[1760781194771,4.41846046,185.9,185.87,2.66]
[1760781194971,4.41846046,185.89,185.86,4.8401]
[1760781195175,2.71,185.91,185.87,2.66]
[1760781195379,4.42132139,185.9,185.87,2.66]
[1760781195577,4.42132139,185.89,185.87,2.66]
[1760781195776,2.71,185.91,185.87,2.66]
[1760781195977,4.42132139,185.9,185.87,2.78]
[1760781196172,4.42132139,185.89,185.87,2.78]
[1760781196378,2.71,185.91,185.87,2.78]
[1760781196574,4.42391461,185.9,185.87,2.78]
[1760781196783,4.42391461,185.89,185.87,2.78]
[1760781196983,2.71,185.91,185.87,2.78]
[1760781197180,4.42391461,185.9,185.87,2.78]
[1760781197379,4.42391461,185.89,185.87,2.78]
[1760781197586,2.71,185.91,185.87,2.78]
[1760781197785,4.4266543,185.9,185.87,2.78]
[1760781198079,2.71,185.91,185.88,2.78]
[1760781198080,4.4266543,185.89,185.88,2.78]
[1760781198282,4.4266543,185.89,185.84,7.6206]
[1760781198485,7.25885944,185.88,185.85,2.78]
[1760781198680,2.83,185.88,185.85,2.78]
[1760781198885,2.83,185.88,185.86,2.78]
[1760781200286,4.4348363,185.87,185.86,2.78]
[1760781200986,7.2648363,185.87,185.85,4.8403]
[1760781201186,2.83,185.87,185.85,4.8403]
[1760781201775,4.43877011,185.86,185.85,4.8403]
[1760781202379,4.43877011,185.86,185.84,2.78]
[1760781202581,2.83,185.87,185.84,2.78]
[1760781202877,4.4422904,185.86,185.84,2.78]
[1760781203079,2.83,185.89,185.84,2.78]
[1760781203280,15.83598521,185.88,185.84,2.78]
[1760781203579,7.27248827,185.87,185.84,2.78]
[1760781203780,4.44248827,185.86,185.84,2.78]
[1760781203983,2.83,185.87,185.84,2.78]
[1760781205280,4.45010672,185.86,185.84,2.78]
[1760781205584,2.83,185.87,185.84,2.78]
[1760781205786,4.45010672,185.86,185.84,2.78]
[1760781205976,2.83,185.87,185.84,2.78]
[1760781207475,2.83,185.89,185.84,2.78]
[1760781207679,2.83,185.87,185.84,2.78]
[1760781208277,4.95767746,185.92,185.81,7.6214]
[1760781208580,2.83,185.9,185.81,7.6214]
[1760781208784,2.83,185.88,185.81,7.6214]
[1760781209085,2.83,185.86,185.81,4.8414]
[1760781209286,4.95767746,185.91,185.81,4.8414]
[1760781209587,2.83,185.89,185.81,4.8414]
[1760781209778,2.83,185.87,185.81,4.8414]
[1760781209978,2.83,185.85,185.81,7.6214]
[1760781210386,10.65098683,185.9,185.79,2.86330937]
[1760781210589,2.83,185.88,185.8,2.78]
[1760781210785,2.83,185.86,185.8,2.78]
[1760781211083,4.45171111,185.85,185.8,2.78]
[1760781211284,2.83,185.86,185.8,2.78]
[1760781211486,4.45141155,185.85,185.8,2.78]
[1760781211681,2.83,185.86,185.8,2.78]
[1760781211883,4.45141155,185.85,185.8,2.78]
[1760781212082,4.8403,185.86,185.8,7.6217]
[1760781212279,7.28101792,185.85,185.8,4.8417]
[1760781212481,2.83,185.85,185.82,2.78]
[1760781212681,2.83,185.89,185.8,2.78]
[1760781212880,8.39487885,185.88,185.8,2.78]
[1760781213080,8.39487885,185.87,185.83,2.78]
[1760781213388,4.45097573,185.86,185.84,2.78]
[1760781213576,2.83,185.89,185.84,2.78]
[1760781213779,2.83,185.87,185.81,2.78]
[1760781213981,7.2804846,185.86,185.83,2.78]
[1760781214187,2.83,185.88,185.84,2.78]
[1760781214387,8.39456096,185.87,185.84,2.78]
[1760781214582,4.45065143,185.86,185.84,2.78]
[1760781214775,2.83,185.87,185.84,2.78]
[1760781214980,4.45065059,185.86,185.83,2.78]
[1760781215181,4.45065059,185.86,185.82,4.8411]
[1760781215182,2.83,185.87,185.84,2.78]
[1760781215381,4.45057535,185.86,185.84,2.78]
[1760781215682,2.83,185.87,185.84,2.78]
[1760781215884,4.45057535,185.86,185.84,2.78]
[1760781216080,2.83,185.87,185.84,2.78]
[1760781216281,4.45052802,185.86,185.84,2.78]
[1760781216482,2.83,185.87,185.84,2.78]
[1760781216682,4.4504994,185.86,185.84,2.78]
[1760781216983,9.79667746,185.91,185.86,2.78]
[1760781217185,2.83,185.89,185.86,2.78]
[1760781217386,8.39434312,185.88,185.86,2.78]
[1760781217586,8.39434312,185.87,185.86,2.78]
[1760781218391,4.4504994,185.87,185.86,2.78]
[1760781218887,8.45807021,185.87,185.86,2.78]
[1760781220884,7.78767746,185.92,185.86,2.78]
[1760781221090,2.83,185.9,185.84,2.78]
[1760781221394,2.83,185.9,185.77,19.70579474]
[1760781221395,11.28726475,185.89,185.87,1.8322447]
[1760781221596,2.83,185.89,185.87,1.8322447]
[1760781222288,2.83,185.89,185.87,4.6122447]
[1760781222488,2.83,185.92,185.87,4.6122447]
[1760781222689,2.83,185.9,185.87,4.6122447]
[1760781223095,2.83,185.92,185.87,1.8322447]
[1760781223287,2.83,185.89,185.87,1.8322447]
[1760781224390,2.83,185.91,185.86,4.84]
[1760781224591,2.83,185.89,185.86,4.84]
[1760781224894,2.83,185.89,185.86,7.62]
[1760781226496,4.8388,185.92,185.86,7.62]
[1760781226693,2.7,185.9,185.86,7.62]
[1760781226896,11.14173962,185.89,185.86,7.62]
[1760781227093,7.539,185.91,185.84,4.8406]
[1760781227294,8.44197137,185.9,185.86,4.6922447]
[1760781227500,7.13472199,185.89,185.86,4.6922447]
[1760781227695,2.7,185.89,185.86,4.6922447]
[1760781228200,2.7,185.89,185.86,1.8322447]
[1760781228402,2.7,185.93,185.87,2.86]
[1760781228598,8.44206424,185.92,185.87,2.86]
[1760781228794,2.7,185.9,185.87,2.86]
[1760781228995,11.14206424,185.89,185.87,2.86]
[1760781229195,2.7,185.89,185.87,2.86]
[1760781231391,4.8385,185.93,185.86,6.6723447]
[1760781231596,8.44133043,185.92,185.86,6.6723447]
[1760781231902,11.14133043,185.91,185.87,2.86]
[1760781232197,8.44133043,185.9,185.86,6.6723447]
[1760781232398,4.43434927,185.89,185.86,6.6723447]
[1760781232701,2.7,185.91,185.86,6.6723447]
[1760781232900,8.44112052,185.9,185.87,2.86]
[1760781233093,4.4342448,185.89,185.86,6.6723447]
[1760781233297,2.7,185.91,185.87,2.86]
[1760781233495,11.14093934,185.9,185.87,2.86]
[1760781233696,2.7,185.88,185.86,1.8322447]
[1760781234098,2.7,185.88,185.86,4.6922447]
[1760781234496,4.8389,185.92,185.86,1.8322447]
[1760781234697,11.14098008,185.91,185.87,2.86]
[1760781234893,8.44098008,185.9,185.87,2.86]
[1760781235102,8.44098008,185.89,185.87,2.86]
[1760781235304,2.7,185.9,185.87,2.86]
[1760781235505,8.44109622,185.89,185.87,2.86]
[1760781235700,2.7,185.9,185.87,2.86]
[1760781235901,11.14109622,185.89,185.87,2.86]
[1760781236201,2.7,185.89,185.87,2.86]
[1760781237605,2.7,185.89,185.86,9.5323447]
[1760781240300,2.7,185.89,185.86,4.6922447]
[1760781241201,2.7,185.9,185.86,1.8322447]
[1760781241509,8.44165078,185.89,185.87,2.86]
[1760781241702,2.7,185.92,185.87,2.86]
[1760781242004,2.7,185.92,185.86,1.8322447]
[1760781242005,11.14151377,185.91,185.88,4.6922447]
[1760781242207,8.44151377,185.9,185.88,4.6922447]
[1760781242405,8.44151377,185.89,185.88,4.6922447]
[1760781242906,8.44151377,185.89,185.88,2.86]
[1760781244608,2.7,185.91,185.86,1.8322447]
[1760781244804,8.44141736,185.9,185.87,2.86]
[1760781245009,2.7,185.91,185.86,1.8322447]
[1760781245210,8.44078495,185.9,185.86,1.8322447]
[1760781245407,2.7,185.91,185.87,2.86]
[1760781245612,8.44047321,185.9,185.87,2.86]
[1760781245910,2.7,185.9,185.87,2.86]
[1760781246109,2.82,185.93,185.86,1.8322447]
[1760781246306,2.82,185.93,185.84,2.86]
[1760781246307,2.82,185.91,185.84,4.6922447]
[1760781246507,8.44036614,185.9,185.84,6.6729447]
[1760781246707,2.82,185.88,185.84,9.5329447]
[1760781246912,6.86127768,185.93,185.84,9.5329447]
[1760781247112,2.82,185.91,185.84,9.5329447]
[1760781247313,8.44095995,185.9,185.84,9.5329447]
[1760781247514,8.44095995,185.89,185.84,9.5329447]
[1760781247812,6.86127768,185.93,185.84,9.5329447]
[1760781248006,2.82,185.89,185.84,9.5329447]
[1760781248210,2.82,185.88,185.84,9.5329447]
[1760781249016,2.82,185.88,185.84,6.6729447]
[1760781249207,2.82,185.89,185.85,2.86]
[1760781249408,4.8393,185.9,185.85,2.86]
[1760781249615,2.82,185.88,185.85,2.86]
[1760781249813,4.8393,185.9,185.84,6.6729447]
[1760781250007,11.27374411,185.89,185.85,2.86]
[1760781250317,2.82,185.89,185.85,2.86]
[1760781251016,2.82,185.89,185.84,6.6729447]
[1760781251410,2.82,185.87,185.84,6.6729447]
[1760781251611,4.8393,185.9,185.84,6.6729447]
[1760781251807,8.45407559,185.89,185.84,6.6729447]
[1760781252012,8.45407559,185.88,185.84,6.6729447]
[1760781252216,11.27407559,185.87,185.84,6.6729447]
[1760781252415,2.82,185.87,185.82,9.5334447]
[1760781252610,4.8398,185.88,185.82,9.5334447]
[1760781252611,8.45477901,185.86,185.82,9.5334447]
[1760781252817,2.82,185.87,185.82,6.6734447]
[1760781253012,11.27509486,185.86,185.82,9.5334447]
[1760781253218,2.82,185.86,185.82,9.5334447]
[1760781253623,2.82,185.86,185.83,2.86]
[1760781254917,2.82,185.86,185.82,6.6734447]
[1760781255225,4.8392,185.9,185.85,2.86]
[1760781255226,2.82,185.89,185.85,2.86]
[1760781255425,11.2406191,185.88,185.85,2.86]
[1760781255726,8.4206191,185.87,185.86,4.6922447]
[1760781256221,7.61903298,185.93,185.87,2.62]
[1760781256429,2.59,185.91,185.89,1.8322447]
[1760781256628,8.42051032,185.9,185.89,1.8322447]
[1760781259333,2.59,185.91,185.89,1.8322447]
[1760781259532,2.59,185.93,185.89,4.4522447]
[1760781259827,8.42184161,185.92,185.89,4.4522447]
[1760781260031,8.42184161,185.91,185.89,4.4522447]
[1760781260231,33.08655191,186.22,185.9,1.8322447]
[1760781260232,2.59,185.94,185.9,1.8322447]
[1760781260527,2.59,185.92,185.89,1.8322447]
[1760781260732,8.42107372,185.91,185.89,1.8322447]
[1760781260929,5.02903298,185.95,185.89,1.8322447]
[1760781261232,2.59,185.93,185.89,4.4522447]
[1760781261428,11.01152172,185.92,185.89,4.4522447]
[1760781261626,8.42152172,185.91,185.89,4.4522447]
[1760781261828,2.59,185.92,185.89,4.4522447]
[1760781262028,8.42165417,185.91,185.89,4.4522447]
[1760781262228,2.59,185.92,185.89,4.4522447]
[1760781262527,8.42191091,185.91,185.89,4.4522447]
[1760781262727,2.59,185.92,185.89,4.4522447]
[1760781262928,8.42191091,185.91,185.89,4.4522447]
[1760781263132,2.59,185.92,185.89,4.4522447]
[1760781263330,8.42195984,185.91,185.89,4.4522447]
[1760781263530,2.59,185.92,185.89,4.4522447]
[1760781263833,8.42229695,185.91,185.89,4.4522447]
[1760781264027,2.59,185.92,185.89,4.4522447]
[1760781264227,8.42227806,185.91,185.89,4.4522447]
[1760781264430,2.59,185.92,185.89,4.4522447]
[1760781264628,8.42225846,185.91,185.89,4.4522447]
[1760781264828,2.59,185.92,185.89,4.4522447]
[1760781265031,8.42225849,185.91,185.89,4.4522447]
[1760781265231,2.59,185.92,185.89,4.4522447]
[1760781265427,8.42230034,185.91,185.89,4.4522447]
[1760781265631,2.59,185.92,185.89,4.4522447]
[1760781265834,8.42230034,185.91,185.89,4.4522447]
[1760781266034,5.02991935,185.96,185.91,4.8387]
[1760781266337,8.42153975,185.95,185.94,1.8322447]
[1760781266534,8.42153975,185.95,185.94,4.4522447]
[1760781267132,7.61991935,186.0,185.94,4.4522447]
[1760781267333,11.00604264,185.99,185.96,1.8322447]
[1760781267532,8.41604264,185.98,185.96,1.8322447]
[1760781267728,4.8367,186.0,185.96,1.8322447]
[1760781267729,11.00604264,185.97,185.96,1.8322447]
[1760781268135,11.00604264,185.97,185.94,1.8322447]
[1760781268439,2.59,185.97,185.94,4.4522447]
[1760781269037,7.4267,186.0,185.94,4.4522447]
[1760781269233,10.99659635,185.99,185.96,4.4522447]
[1760781269539,8.40659635,185.98,185.96,4.4522447]
[1760781269739,2.59,185.99,185.96,4.4522447]
[1760781269941,8.40462658,185.98,185.96,4.4522447]
[1760781270241,2.59,185.99,185.96,4.4522447]
[1760781270445,4.01032465,185.98,185.96,4.4522447]
[1760781270635,2.59,185.99,185.96,2.62]
[1760781270837,4.01032465,185.98,185.96,4.4522447]
[1760781271136,2.59,185.99,185.96,4.4522447]
[1760781271937,4.8365,186.01,185.96,4.4522447]
[1760781272145,8.39811604,186.0,185.96,1.8322447]
[1760781272441,2.59,185.98,185.96,1.8322447]
[1760781273343,2.59,185.98,185.96,4.4522447]
[1760781275238,2.59,185.98,185.96,2.62]
[1760781279636,2.59,185.98,185.95,4.8377]
[1760781279842,1.8322447,186.0,185.93,9.2905447]
[1760781280141,6.6689447,186.0,185.93,7.4583]
[1760781280336,2.59,185.97,185.9,4.4522447]
[1760781280540,1.8322447,185.98,185.9,4.4522447]
[1760781280937,2.59,185.97,185.9,4.4522447]
[1760781281136,1.8322447,185.98,185.9,4.4522447]
[1760781281541,7.4275,185.97,185.91,4.8388]
[1760781282243,4.8375,185.97,185.91,4.8388]
[1760781282442,4.4222447,185.96,185.91,4.8388]
[1760781282646,2.59,185.95,185.91,7.4588]
[1760781282847,2.59,185.95,185.91,4.8388]
[1760781283047,2.59,185.95,185.92,2.62]
[1760781283548,4.8375,185.97,185.91,4.8388]
[1760781283749,2.59,185.95,185.89,4.8393]
[1760781283947,4.8378,185.96,185.89,4.8393]
[1760781284147,2.59,185.95,185.89,4.8393]
[1760781284343,2.86209001,185.96,185.88,2.62]
[1760781284549,2.59,185.95,185.87,4.8398]
[1760781284748,2.86209001,185.96,185.87,4.8398]
[1760781284943,2.59,185.94,185.87,4.8398]
[1760781285150,2.86209001,185.96,185.87,4.8398]
[1760781285350,2.59,185.94,185.87,4.8398]
[1760781285548,2.59,185.94,185.87,7.4598]
[1760781285951,7.4283,185.94,185.87,7.4598]
[1760781286852,2.72,185.93,185.87,7.4598]
[1760781288858,2.72,185.97,185.89,2.71]
[1760781289058,8.38783353,185.96,185.89,2.71]
[1760781289256,6.72781694,185.95,185.89,2.71]
[1760781289451,2.72,185.95,185.89,2.71]
[1760781290157,7.558,185.95,185.89,2.71]
[1760781294159,4.8383,185.94,185.89,2.71]
[1760781294554,2.72,185.92,185.89,2.71]
[1760781297956,2.72,185.97,185.91,4.8388]
[1760781298161,2.72,185.95,185.91,4.8388]
[1760781298364,2.72,185.95,185.91,7.5488]
[1760781298561,2.72,185.99,185.91,7.5488]
[1760781298763,2.72,185.97,185.91,7.5488]
[1760781298956,2.72,185.95,185.92,2.71]
[1760781299864,4.8375,185.97,185.92,2.71]
[1760781300059,7.5575,185.97,185.92,2.71]
[1760781300265,4.01411717,185.96,185.93,2.71]
[1760781300465,7.5575,185.97,185.92,2.71]
[1760781300668,4.01411717,185.96,185.93,2.71]
[1760781300868,2.72,185.96,185.93,2.71]
[1760781301560,2.72,185.95,185.89,7.5493]
[1760781301760,2.72,185.95,185.89,2.71]
[1760781302462,4.8371,185.98,185.86,2.86209001]
[1760781302668,8.40381592,185.97,185.9,2.71]
[1760781302868,7.5571,185.98,185.9,2.71]
[1760781303067,8.40347905,185.97,185.9,2.71]
[1760781303265,7.5571,185.98,185.9,2.71]
[1760781303466,8.40445405,185.97,185.9,2.71]
[1760781303666,7.5571,185.98,185.9,2.71]
[1760781303962,8.40445405,185.97,185.92,4.8385]
[1760781304162,2.72,185.96,185.87,2.71]
[1760781304761,2.72,185.94,185.87,2.71]
[1760781304967,2.72,185.92,185.87,2.71]
[1760781305264,2.72,185.96,185.87,2.71]
[1760781305569,2.72,185.93,185.84,2.71]
[1760781305767,2.82,185.91,185.84,2.71]
[1760781305967,8.40707358,185.9,185.85,4.8405]
[1760781306169,2.82,185.94,185.84,2.6]
[1760781306369,8.40799665,185.93,185.84,2.6]
[1760781306570,8.40799665,185.92,185.84,44.5]
[1760781306765,2.82,185.94,185.85,2.6]
[1760781307065,11.22799208,185.93,185.88,4.8395]
[1760781307367,8.40799208,185.92,185.89,2.6]
[1760781307564,2.82,185.93,185.89,2.6]
[1760781307765,2.82,185.91,185.87,2.6]
[1760781308070,2.82,185.91,185.86,4.8401]
[1760781308470,2.82,185.91,185.87,2.6]
[1760781309064,498.3876,186.08,185.83,91.34369452]
[1760781309065,2.82,185.9,185.84,4.8406]
[1760781309566,2.82,185.88,185.84,7.4406]
[1760781310163,2.86209001,185.93,185.82,4.8411]
[1760781310366,2.82,185.91,185.81,2.6]
[1760781310568,2.82,185.91,185.84,2.6]
[1760781310569,4.02997705,185.9,185.84,2.6]
[1760781310764,4.8385,185.93,185.84,2.6]
[1760781310971,8.41801883,185.92,185.84,2.6]
[1760781311168,8.41801883,185.91,185.84,19.28]
[1760781311368,4.8385,185.93,185.85,2.6]
[1760781311571,8.41717867,185.92,185.85,2.6]
[1760781311865,4.0281015,185.91,185.85,2.6]
[1760781312071,2.82,185.94,185.87,2.6]
[1760781313567,2.82,185.94,185.88,4.8396]
[1760781313766,2.82,185.94,185.89,2.6]
[1760781314372,2.82,185.94,185.88,7.4396]
[1760781320265,2.82,185.94,185.88,4.8396]
[1760781320266,4.03021868,185.93,185.88,4.8396]
[1760781320469,2.63,185.95,185.89,2.6]
[1760781320671,2.63,185.93,185.9,2.6]
[1760781321973,2.63,185.97,185.9,2.6]
[1760781322181,8.41470764,185.96,185.9,2.6]
[1760781322374,8.41470764,185.95,185.9,2.6]
[1760781322572,2.63,185.97,185.9,2.6]
[1760781322768,8.41609055,185.96,185.9,2.6]
[1760781322973,11.04609055,185.95,185.91,4.8388]
[1760781323177,2.63,185.95,185.92,2.6]
[1760781323479,4.0323367,185.94,185.92,2.6]
[1760781323686,2.63,185.95,185.92,2.6]
[1760781323980,4.03243899,185.94,185.92,2.6]
[1760781324175,2.63,185.95,185.92,2.6]
[1760781324375,4.03323297,185.94,185.92,2.6]
[1760781324678,2.63,185.95,185.92,2.6]
[1760781324873,4.03331385,185.94,185.92,2.6]
[1760781325071,2.63,185.95,185.92,2.6]
[1760781325378,8.42059264,185.94,185.92,2.6]
[1760781325582,2.63,185.95,185.92,2.6]
[1760781325772,11.05162785,185.94,185.92,2.6]
[1760781325973,2.63,185.94,185.92,2.6]
[1760781326378,4.8375,185.97,185.92,2.6]
[1760781326581,2.63,185.95,185.92,2.6]
[1760781326779,8.42194808,185.94,185.92,2.6]
[1760781327078,4.8375,185.97,185.92,2.6]
[1760781327273,8.42198028,185.96,185.92,2.6]
[1760781327471,8.42198028,185.95,185.92,2.6]
[1760781327676,8.42198028,185.94,185.93,2.6]
[1760781327881,8.42203488,185.94,185.93,2.6]
[1760781328774,2.63,185.96,185.93,2.6]
[1760781328978,6.66415965,185.95,185.93,2.6]
[1760781329278,4.8372,185.98,185.93,2.6]
[1760781329579,8.42076926,185.97,185.9,2.6]
[1760781329787,8.42076926,185.96,185.9,2.6]
[1760781329979,2.63,185.99,185.9,2.6]
[1760781330177,8.42049906,185.98,185.91,2.6]
[1760781330374,8.42049906,185.97,185.94,2.6]
[1760781330575,4.03380978,185.96,185.93,2.6]
[1760781330771,2.63,185.99,185.93,2.6]
[1760781330974,8.41954935,185.98,185.93,2.6]
[1760781331178,0.05074646,185.97,185.95,4.8377]
[1760781331378,5.01746423,186.01,185.91,44.5]
[1760781331379,2.63,186.06,185.97,2.6]
[1760781331584,2.63,186.06,185.97,2.86209001]
[1760781331783,2.63,186.06,185.98,2.6]
[1760781331978,2.63,186.06,186.0,4.8366]
[1760781333285,2.63,186.06,185.98,7.437]
[1760781333484,4.8349,186.07,185.98,7.437]
[1760781333485,2.63,186.05,185.98,7.437]
[1760781333785,2.63,186.05,185.99,4.8367]